bitfinex/quotes_ETHUSD_20251218
["timestamp","ask_amount","ask_price","bid_price","bid_amount"]
[1766063430296,4.8731,2898.9,2897.8,0.10396091]
[1766063430502,4.8731,2898.9,2898.0,0.10396091]
[1766063430697,4.00873587,2898.8,2898.0,0.10396091]
[1766063430892,3.79443954,2899.0,2898.0,0.10396091]
[1766063430893,3.44961984,2898.9,2898.0,0.10396091]
[1766063431122,0.3449423,2899.0,2898.0,0.46984134]
[1766063431123,0.5582,2898.8,2898.0,0.46984134]
[1766063431521,4.8761,2899.3,2898.2,0.10396091]
[1766063431522,0.002,2898.5,2898.2,0.10396091]
[1766063431722,0.559,2898.8,2898.4,0.10396091]
[1766063431931,0.559,2898.8,2898.6,0.10396091]
[1766063432136,0.559,2898.8,2898.2,0.10396091]
[1766063432137,0.559,2898.8,2898.5,0.10396091]
[1766063433537,0.559,2898.8,2898.2,0.10396091]
[1766063433538,5.4321,2898.8,2898.2,0.10396091]
[1766063433739,0.88817217,2898.7,2897.8,0.10396091]
[1766063433940,0.88817217,2898.7,2897.6,0.10396091]
[1766063434124,0.559,2898.6,2897.8,0.10396091]
[1766063434748,1.2151,2898.2,2896.5,0.001]
[1766063434952,1.2151,2898.0,2896.6,2.34329091]
[1766063435252,4.14531,2898.1,2896.6,6.43265]
[1766063435253,0.559,2897.9,2896.6,6.43265]
[1766063435468,4.8731,2897.8,2896.5,0.001]
[1766063436425,0.56,2897.7,2896.5,0.001]
[1766063436767,4.8731,2897.8,2896.5,0.001]
[1766063436768,0.56,2897.6,2896.5,0.001]
[1766063436917,7.46229752,2897.6,2896.5,0.001]
[1766063437122,0.56,2897.5,2896.5,0.001]
[1766063438256,10.84051706,2897.7,2896.5,0.001]
[1766063438257,0.56,2897.4,2896.5,0.001]
[1766063438776,0.56,2897.3,2896.6,2.09585]
[1766063438943,0.56,2897.3,2896.5,0.001]
[1766063439142,4.8731,2897.3,2896.6,0.10396091]
[1766063439361,0.56,2897.2,2896.6,0.10396091]
[1766063440773,8.32375562,2898.0,2897.1,0.10396091]
[1766063440976,8.32375562,2898.0,2897.3,0.10396091]
[1766063441139,0.559,2897.9,2897.3,0.10396091]
[1766063441738,5.4321,2897.9,2897.3,0.10396091]
[1766063442077,0.559,2897.9,2897.3,0.10396091]
[1766063442300,4.8731,2897.8,2897.3,0.10396091]
[1766063442567,4.9413,2897.8,2897.3,0.10396091]
[1766063442781,3.45242144,2898.2,2897.7,0.10396091]
[1766063442937,0.559,2898.1,2897.7,0.10396091]
[1766063443654,0.002,2898.2,2897.7,0.10396091]
[1766063443870,0.559,2898.1,2897.7,0.10396091]
[1766063445276,0.04313319,2898.0,2897.5,0.10396091]
[1766063445486,6.1859548,2898.0,2897.5,0.10396091]
[1766063445780,6.1859548,2898.0,2897.3,0.10396091]
[1766063445781,4.9413,2897.9,2897.3,0.10396091]
[1766063447004,1.2446548,2898.0,2897.3,0.10396091]
[1766063447297,4.9413,2897.8,2897.3,0.10396091]
[1766063447599,0.559,2897.7,2897.3,0.10396091]
[1766063447803,0.559,2897.7,2897.1,0.10396091]
[1766063448175,0.559,2897.7,2896.8,0.10396091]
[1766063448176,1.4295,2897.3,2896.8,0.10396091]
[1766063448371,0.559,2897.2,2896.8,0.10396091]
[1766063448613,5.5003,2897.2,2896.8,0.10396091]
[1766063449496,0.559,2897.2,2896.8,0.10396091]
[1766063449697,8.39263103,2897.5,2896.8,0.10396091]
[1766063449902,0.559,2897.4,2896.8,0.10396091]
[1766063450103,4.9413,2897.3,2896.6,0.10396091]
[1766063450291,3.5118,2897.1,2896.6,0.10396091]
[1766063450497,5.4993,2897.0,2896.6,0.10396091]
[1766063450798,4.9413,2896.9,2896.4,0.10396091]
[1766063451795,0.558,2897.0,2896.4,0.10396091]
[1766063452901,4.9413,2896.9,2896.4,0.10396091]
[1766063455883,4.9405,2896.9,2896.4,0.10396091]
[1766063457348,0.3493,2896.8,2896.6,0.10396091]
[1766063457501,1.1843833,2897.4,2896.6,0.10396091]
[1766063457502,0.558,2896.7,2896.6,0.10396091]
[1766063457819,0.558,2896.7,2896.4,0.10396091]
[1766063458807,4.01021575,2896.7,2896.1,0.10496091]
[1766063459009,0.002,2898.5,2896.1,0.10496091]
[1766063459010,1.4295,2897.4,2896.2,0.10396091]
[1766063459222,4.0698,2897.3,2896.8,0.10396091]
[1766063459487,4.0698,2897.3,2897.0,0.10396091]
[1766063460092,7.5213067,2897.3,2897.0,0.10396091]
[1766063460288,3.5118,2897.3,2897.0,0.10396091]
[1766063460525,0.558,2897.2,2897.0,0.10396091]
[1766063460729,3.55494659,2897.1,2896.6,0.10396091]
[1766063460887,4.9413,2897.0,2896.6,0.10396091]
[1766063461130,4.9413,2897.0,2896.4,0.10396091]
[1766063461131,5.1495,2897.0,2896.4,0.10396091]
[1766063461458,0.04314957,2896.9,2895.6,0.10396091]
[1766063461660,3.6821,2896.3,2895.6,0.10396091]
[1766063461846,5.1495,2896.0,2895.6,0.10396091]
[1766063463227,5.1495,2896.0,2895.4,0.10396091]
[1766063463430,8.60257204,2896.0,2895.4,0.10396091]
[1766063463630,8.60257204,2896.0,2895.2,0.10496091]
[1766063463631,3.6821,2895.8,2895.2,0.10496091]
[1766063463831,0.04316447,2895.9,2895.0,0.10496091]
[1766063463832,5.1495,2895.6,2895.0,0.10496091]
[1766063464079,0.557,2895.7,2894.9,0.10396091]
[1766063464080,0.57065,2895.5,2894.9,0.10396091]
[1766063464238,12.05682035,2895.5,2894.9,0.10396091]
[1766063464426,0.557,2895.4,2894.9,0.10396091]
[1766063464629,3.45363495,2895.5,2894.9,0.10396091]
[1766063464833,0.557,2895.3,2894.9,0.00396091]
[1766063465028,7.82031585,2896.7,2895.1,0.10396091]
[1766063465337,1.4674,2895.9,2895.1,0.10396091]
[1766063465555,5.1495,2895.7,2895.1,0.10396091]
[1766063465865,5.1495,2895.4,2894.9,0.00396091]
[1766063466159,0.557,2895.3,2894.9,0.00396091]
[1766063466365,5.1495,2895.8,2895.1,0.10396091]
[1766063466532,5.7065,2895.7,2895.3,0.10396091]
[1766063466741,3.6821,2895.5,2895.1,0.10396091]
[1766063466935,3.6821,2895.5,2894.8,0.10396091]
[1766063467134,3.6821,2895.5,2895.0,0.10396091]
[1766063467338,0.557,2895.4,2895.0,0.10396091]
[1766063467952,5.1495,2895.2,2894.7,0.10396091]
[1766063468463,5.1495,2895.1,2894.3,0.10396091]
[1766063468715,0.557,2895.0,2894.7,0.10396091]
[1766063468867,0.557,2895.0,2894.9,0.10396091]
[1766063470162,0.0674,2895.0,2894.9,0.10396091]
[1766063470366,0.0674,2895.0,2894.7,0.10396091]
[1766063470601,0.0674,2895.0,2894.7,0.47021508]
[1766063470781,0.0674,2895.0,2894.4,0.10396091]
[1766063470983,5.2169,2895.0,2894.4,0.10396091]
[1766063471177,0.557,2894.9,2894.5,3.45474074]
[1766063471381,0.557,2894.8,2894.4,3.55883126]
[1766063471778,0.557,2894.9,2894.6,0.10396091]
[1766063471979,0.557,2894.9,2894.6,0.47024013]
[1766063473003,0.557,2894.9,2894.6,0.47124013]
[1766063473595,1.4674,2895.4,2894.6,3.92593517]
[1766063473596,3.6792,2895.3,2894.6,3.92593517]
[1766063473900,0.557,2895.2,2894.6,0.47124013]
[1766063474110,5.1683,2895.1,2894.6,0.001]
[1766063474271,0.557,2895.2,2894.2,0.10396091]
[1766063474272,3.6792,2894.9,2894.2,0.10396091]
[1766063474476,0.557,2894.8,2894.2,0.10396091]
[1766063474683,5.7253,2894.8,2894.1,0.001]
[1766063475114,5.1683,2894.7,2894.1,0.001]
[1766063475685,3.6792,2894.7,2894.1,0.001]
[1766063475889,0.557,2894.8,2893.8,0.001]
[1766063475890,3.6792,2894.5,2893.8,0.001]
[1766063476079,5.1683,2894.3,2893.8,0.001]
[1766063476319,6.9101337,2894.3,2893.6,0.001]
[1766063476522,3.6792,2894.0,2893.0,0.10396091]
[1766063476727,5.7253,2893.9,2893.2,0.10396091]
[1766063476928,5.7253,2893.9,2893.0,3.56055949]
[1766063476929,5.1683,2893.7,2892.6,0.66096091]
[1766063477141,5.7253,2893.6,2892.6,4.11799293]
[1766063477420,0.557,2893.6,2892.6,0.10396091]
[1766063477753,13.81986831,2894.4,2892.6,0.10396091]
[1766063477754,0.557,2893.5,2892.6,0.10396091]
[1766063478046,0.557,2893.4,2892.6,0.10396091]
[1766063478248,7.82031585,2895.1,2893.0,3.56055203]
[1766063478549,3.45508166,2894.3,2893.1,0.3561552]
[1766063478718,1.4891,2893.7,2893.0,3.45660039]
[1766063478921,0.557,2893.6,2893.0,3.45660039]
[1766063479224,0.557,2893.6,2892.8,3.45685127]
[1766063479425,5.1683,2893.5,2892.4,0.56834114]
[1766063479634,5.1683,2893.5,2892.7,3.45693471]
[1766063479822,5.1683,2893.5,2892.6,3.45707015]
[1766063480039,0.557,2893.6,2892.4,0.10396091]
[1766063480237,5.1683,2893.3,2892.4,0.10396091]
[1766063480466,0.405504,2894.4,2892.4,0.10396091]
[1766063480467,11.65602053,2895.1,2892.5,0.10396091]
[1766063480633,3.6792,2894.5,2893.8,0.001]
[1766063480967,3.6792,2894.3,2893.8,0.001]
[1766063481184,0.558,2894.2,2893.8,0.001]
[1766063481340,0.558,2894.2,2892.6,0.001]
[1766063481341,3.72239132,2894.1,2892.6,0.001]
[1766063481539,4.15043045,2894.1,2892.6,0.001]
[1766063481746,4.10723913,2894.1,2892.6,0.001]
[1766063482043,0.405504,2894.0,2892.6,0.001]
[1766063482243,3.6792,2893.9,2892.6,0.001]
[1766063482449,3.6792,2893.5,2892.6,0.001]
[1766063482647,0.71351027,2893.5,2892.6,0.001]
[1766063482849,5.1683,2893.2,2892.6,0.001]
[1766063483153,5.1683,2893.3,2892.6,0.001]
[1766063483867,0.558,2893.2,2892.6,0.001]
[1766063484640,5.7263,2893.2,2892.6,0.001]
[1766063485473,6.19986258,2895.8,2892.6,0.34683365]
[1766063485474,0.46438023,2894.4,2892.6,0.34683365]
[1766063485772,3.6792,2894.3,2892.9,0.10396091]
[1766063486076,5.1683,2894.3,2893.1,0.10396091]
[1766063486273,0.557,2894.2,2893.1,0.10396091]
[1766063486477,5.7253,2894.2,2893.2,3.45638047]
[1766063486658,5.7253,2894.2,2893.3,0.35603414]
[1766063487449,5.1683,2894.2,2893.3,0.45999505]
[1766063487652,0.557,2894.1,2893.3,0.45999505]
[1766063488570,0.557,2894.1,2893.4,6.91228312]
[1766063488884,0.002,2893.6,2893.4,6.91228312]
[1766063489085,0.002,2893.6,2893.5,0.73722782]
[1766063491397,0.002,2893.6,2893.3,0.10396091]
[1766063491398,0.002,2893.6,2893.3,3.56021004]
[1766063491569,0.002,2893.6,2893.1,3.56043959]
[1766063491768,0.002,2893.6,2893.3,3.45619383]
[1766063491963,0.002,2893.6,2893.1,0.56834114]
[1766063492165,0.002,2893.6,2893.3,3.45619709]
[1766063492371,5.7253,2894.0,2893.2,3.45630144]
[1766063492588,5.7253,2894.0,2893.4,3.45608406]
[1766063492751,3.45489655,2894.5,2893.4,3.45608406]
[1766063492752,5.1683,2894.5,2893.4,3.45608406]
[1766063492951,1.4891,2893.8,2892.9,3.45668733]
[1766063493153,1.4891,2893.8,2892.6,3.80385186]
[1766063493154,3.6792,2893.4,2892.6,3.80385186]
[1766063493386,0.557,2893.3,2892.6,0.3597302]
[1766063493566,0.557,2893.3,2892.6,0.001]
[1766063493567,5.7253,2893.3,2892.6,0.001]
[1766063493776,3.6792,2893.2,2892.6,0.001]
[1766063494088,1.4891,2892.9,2892.5,0.001]
[1766063494278,5.1683,2892.9,2892.5,0.001]
[1766063494592,5.1683,2892.9,2892.5,3.45813392]
[1766063494757,5.1683,2892.9,2892.5,0.001]
[1766063495566,5.7253,2893.3,2892.5,0.001]
[1766063495785,0.557,2893.3,2892.5,0.001]
[1766063495973,5.1683,2893.2,2892.5,0.001]
[1766063496291,1.4891,2893.1,2892.5,0.001]
[1766063496471,5.1683,2893.1,2892.5,0.001]
[1766063497001,3.45646493,2893.2,2892.5,0.001]
[1766063497200,0.57253,2893.1,2892.3,0.001]
[1766063497411,3.6792,2892.9,2892.3,0.001]
[1766063497708,3.6792,2892.7,2892.5,0.001]
[1766063498068,4.10282,2892.7,2892.3,0.001]
[1766063498267,0.557,2892.6,2892.3,0.001]
[1766063498473,5.1683,2893.0,2892.3,3.45842396]
[1766063498725,0.557,2892.7,2892.3,0.001]
[1766063499996,3.6792,2893.0,2892.3,0.001]
[1766063500196,0.002,2893.6,2892.3,0.001]
[1766063500197,0.557,2892.9,2892.3,0.001]
[1766063500399,0.557,2892.8,2892.3,0.001]
[1766063501077,0.557,2892.8,2892.3,6.915912]
[1766063501304,0.557,2892.8,2892.3,7.61789929]
[1766063501687,1.4891,2893.2,2892.3,7.61789929]
[1766063502001,0.557,2893.1,2892.3,7.61789929]
[1766063502197,0.557,2893.1,2892.3,0.70298729]
[1766063502198,5.1683,2893.0,2892.3,0.70298729]
[1766063502391,5.1683,2893.0,2892.3,0.001]
[1766063502774,3.5239,2893.0,2892.3,0.001]
[1766063502976,5.1417,2893.0,2892.3,0.001]
[1766063503697,0.556,2892.9,2892.3,0.001]
[1766063504087,5.1417,2893.5,2892.3,0.7494403]
[1766063504291,0.556,2893.4,2892.3,0.7494403]
[1766063504596,5.6977,2893.4,2892.3,0.7494403]
[1766063504798,3.5239,2893.5,2892.4,0.10396091]
[1766063504998,0.556,2893.3,2892.4,0.10396091]
[1766063505171,5.6977,2893.3,2892.5,3.45721694]
[1766063505374,0.5552,2893.3,2892.5,0.43106181]
[1766063505573,5.1417,2892.9,2892.3,0.001]
[1766063505781,0.556,2892.8,2892.3,0.001]
[1766063506000,5.6977,2892.8,2892.3,0.001]
[1766063507604,5.1417,2892.7,2892.3,0.001]
[1766063507797,6.05715744,2892.7,2892.3,0.001]
[1766063508605,0.91545744,2892.7,2892.3,0.001]
[1766063508770,5.1417,2892.5,2891.7,4.11911552]
[1766063509799,5.1417,2892.5,2891.7,7.57728891]
[1766063509971,5.1417,2892.5,2891.7,4.11911552]
[1766063510575,5.1417,2892.3,2891.7,0.001]
[1766063510917,0.002,2893.6,2891.8,0.10396091]
[1766063511234,0.002,2893.6,2892.0,0.10396091]
[1766063511235,7.46804422,2893.5,2892.0,0.10396091]
[1766063511387,3.5239,2893.2,2892.0,0.10396091]
[1766063511586,3.5239,2893.2,2892.1,3.4576951]
[1766063511587,5.1417,2893.0,2892.1,3.4576951]
[1766063512571,3.5239,2893.0,2892.1,3.4576951]
[1766063512776,3.5239,2893.0,2891.7,0.001]
[1766063512777,0.04320923,2892.9,2891.7,0.001]
[1766063512977,1.6178,2892.9,2891.7,0.001]
[1766063513172,1.6178,2892.5,2891.7,0.001]
[1766063513471,0.556,2892.4,2891.7,0.001]
[1766063513671,3.5239,2892.3,2891.7,0.001]
[1766063513899,4.01334013,2892.4,2891.7,0.001]
[1766063513900,5.1417,2892.1,2891.7,0.001]
[1766063514585,0.556,2892.4,2891.7,0.001]
[1766063515683,5.1417,2892.1,2891.7,0.001]
[1766063516381,0.556,2892.0,2891.7,0.001]
[1766063516585,5.1417,2891.9,2891.4,0.001]
[1766063516889,5.1417,2891.7,2891.4,0.001]
[1766063517087,11.28753953,2892.4,2890.5,0.557]
[1766063517088,3.5239,2891.5,2890.5,0.557]
[1766063517288,5.1417,2891.3,2890.5,0.001]
[1766063517504,5.1417,2891.3,2890.5,3.4605486]
[1766063517908,5.1417,2891.3,2890.5,0.001]
[1766063518520,5.1417,2892.2,2890.8,8.19708388]
[1766063518681,0.91548239,2892.4,2890.8,8.19708388]
[1766063518682,0.556,2892.1,2890.8,8.30104479]
[1766063518882,5.18492268,2892.0,2890.8,0.10396091]
[1766063519079,5.1417,2892.0,2890.8,0.10396091]
[1766063519299,0.556,2892.1,2890.8,0.10396091]
[1766063519687,3.45622144,2893.4,2891.4,0.10396091]
[1766063519881,5.6977,2892.8,2891.5,0.83010448]
[1766063520118,0.556,2892.8,2891.5,0.83010448]
[1766063520312,5.3276,2892.6,2891.4,0.10396091]
[1766063520628,0.46438023,2892.6,2891.2,0.10396091]
[1766063520781,1.02038023,2892.8,2891.2,0.10396091]
[1766063520991,0.46438023,2892.8,2891.2,0.10396091]
[1766063521215,0.556,2892.7,2891.2,0.10396091]
[1766063521419,3.7969,2892.2,2891.2,0.10396091]
[1766063521635,5.8836,2892.1,2891.2,0.10396091]
[1766063521939,0.556,2892.0,2891.3,6.91730362]
[1766063522142,0.556,2892.1,2891.4,0.70212645]
[1766063523197,0.556,2892.1,2891.0,0.001]
[1766063523399,3.7969,2891.9,2891.0,0.001]
[1766063524025,3.7969,2891.8,2891.0,0.001]
[1766063524340,0.556,2891.7,2891.0,0.001]
[1766063524505,0.556,2891.9,2891.0,0.001]
[1766063526770,5.3276,2891.8,2891.1,0.34711304]
[1766063526974,5.3276,2891.8,2891.1,0.001]
[1766063527277,0.556,2891.8,2891.1,0.001]
[1766063528045,5.3276,2891.7,2891.1,0.001]
[1766063528231,3.7969,2891.5,2891.1,0.001]
[1766063528438,0.556,2891.4,2891.1,0.001]
[1766063528638,0.556,2891.4,2890.2,0.001]
[1766063528639,4.01456769,2891.4,2890.2,0.001]
[1766063528959,4.05779934,2891.4,2890.2,0.001]
[1766063529166,5.3276,2891.1,2890.2,0.001]
[1766063529344,0.556,2891.0,2890.2,3.46095519]
[1766063529543,0.556,2891.0,2890.2,0.001]
[1766063529766,5.3276,2891.1,2890.2,3.46089409]
[1766063529968,0.556,2891.0,2890.3,3.45975673]
[1766063530185,1.18679763,2891.0,2890.2,0.001]
[1766063530334,5.3276,2890.9,2890.2,0.001]
[1766063530669,5.3276,2890.6,2890.2,0.001]
[1766063530966,0.556,2890.6,2890.2,0.001]
[1766063532140,5.3276,2890.8,2890.2,0.001]
[1766063532141,5.3276,2892.0,2890.5,0.10396091]
[1766063532577,3.5202,2891.7,2890.6,3.45944823]
[1766063532786,5.51232,2891.6,2890.6,3.45944823]
[1766063533156,0.556,2891.5,2890.6,6.9189376]
[1766063533356,0.35202,2891.6,2890.6,6.9189376]
[1766063533357,0.556,2891.6,2890.6,6.9189376]
[1766063534185,5.1603,2891.9,2890.6,6.9189376]
[1766063534494,5.1603,2891.9,2890.8,3.45925003]
[1766063534652,0.556,2892.0,2890.9,0.73241162]
[1766063535060,5.7163,2892.0,2890.9,0.73241162]
[1766063535282,9.21734542,2892.0,2890.9,0.73241162]
[1766063535465,0.04322417,2891.9,2890.9,0.73241162]
[1766063535669,3.5202,2891.8,2890.9,0.73241162]
[1766063535894,1.6401,2891.7,2890.9,0.73241162]
[1766063536099,4.01382633,2892.0,2890.9,0.73241162]
[1766063536100,2.1961,2892.0,2890.9,0.73241162]
[1766063536594,5.7163,2892.0,2891.0,3.45901072]
[1766063536882,4.01387025,2892.0,2890.9,4.19147994]
[1766063537051,5.1603,2891.9,2891.0,0.76506866]
[1766063538302,5.20352417,2891.9,2891.0,0.76506866]
[1766063538470,0.04322417,2891.9,2890.7,0.56834114]
[1766063538665,6.91610602,2891.9,2890.6,0.001]
[1766063538872,5.1603,2891.7,2890.7,6.91870235]
[1766063539059,0.59922866,2891.6,2890.7,3.45933265]
[1766063539259,0.59922866,2891.6,2890.7,6.91870235]
[1766063539779,5.75952866,2891.6,2890.7,3.45933265]
[1766063539966,5.7163,2891.6,2890.7,3.45933265]
[1766063540169,5.7163,2891.6,2890.7,4.15132348]
[1766063540366,5.1603,2891.5,2890.7,4.15132348]
[1766063540585,5.1603,2891.5,2890.7,7.61069318]
[1766063541381,3.45793669,2891.9,2890.7,7.61069318]
[1766063541382,0.002,2892.9,2890.8,0.46438023]
[1766063541693,0.46438023,2892.1,2890.8,8.31276148]
[1766063541880,0.46438023,2892.1,2890.9,1.99388244]
[1766063542196,5.62468023,2892.1,2890.9,1.99388244]
[1766063542562,0.556,2892.0,2890.9,1.99388244]
[1766063542969,0.556,2892.0,2891.0,3.45901072]
[1766063543175,0.556,2892.0,2891.0,6.91802144]
[1766063543494,0.002,2891.9,2891.1,0.89119039]
[1766063544672,0.46438023,2892.4,2891.2,8.40438125]
[1766063544882,0.556,2892.3,2891.2,8.40438125]
[1766063545099,0.556,2892.3,2891.3,7.38168385]
[1766063545297,0.556,2892.3,2891.4,1.57860651]
[1766063545594,0.002,2892.5,2891.4,1.57860651]
[1766063546596,0.002,2892.5,2891.6,7.84838125]
[1766063546801,0.002,2892.5,2891.6,8.40438125]
[1766063547299,0.002,2892.9,2891.8,0.46438023]
[1766063547504,0.002,2892.9,2892.0,7.84838125]
[1766063547712,0.002,2893.1,2892.1,0.961504]
[1766063548802,0.002,2893.1,2892.1,1.42588423]
[1766063549405,0.002,2893.1,2892.2,6.91515108]
[1766063549720,5.1603,2893.0,2892.2,0.556]
[1766063550015,5.1603,2892.9,2892.1,3.4576951]
[1766063550321,0.56698865,2893.0,2892.1,3.4576951]
[1766063550679,0.56698865,2893.0,2892.1,6.9153902]
[1766063551015,0.002,2893.1,2892.1,6.9153902]
[1766063551231,5.1623,2893.1,2892.2,0.46438023]
[1766063551397,0.558,2893.1,2892.3,6.914912]
[1766063551587,0.558,2893.1,2892.4,0.73792922]
[1766063551787,0.002,2893.1,2892.4,0.73792922]
[1766063553980,0.002,2893.1,2892.5,3.45721694]
[1766063554186,0.002,2893.1,2892.4,0.73792922]
[1766063554386,0.002,2893.1,2892.2,3.92187768]
[1766063554690,5.1615,2893.1,2892.1,4.01360725]
[1766063555121,5.1615,2893.1,2892.2,3.45756046]
[1766063555504,1.6401,2892.9,2891.9,1.08389004]
[1766063555831,5.1603,2892.9,2892.0,3.45775321]
[1766063556028,0.556,2892.8,2892.0,0.46438023]
[1766063556184,5.7163,2892.8,2891.8,4.01398986]
[1766063556390,5.1603,2892.6,2891.8,0.556]
[1766063556693,5.1603,2892.6,2891.9,0.46438023]
[1766063556893,5.73193,2892.6,2891.9,0.46438023]
[1766063557110,5.73193,2892.6,2891.8,3.45801554]
[1766063558022,5.73193,2892.6,2891.7,3.45816544]
[1766063558319,5.73193,2892.6,2891.7,6.91633883]
[1766063558685,5.73193,2892.6,2891.7,3.45816544]
[1766063558891,5.73193,2892.6,2891.7,4.21580331]
[1766063559094,5.73193,2892.6,2891.7,7.6739767]
[1766063559295,0.556,2892.8,2891.7,7.6739767]
[1766063559495,5.7163,2892.8,2891.7,7.6739767]
[1766063560512,3.5202,2892.7,2891.7,0.75763787]
[1766063560696,5.1603,2892.5,2891.7,0.46438023]
[1766063561029,5.1603,2892.5,2891.7,3.45816457]
[1766063561403,0.46438023,2892.7,2891.5,4.01435998]
[1766063561601,5.1603,2892.4,2891.5,4.01437976]
[1766063561821,5.7163,2892.4,2891.6,3.45823702]
[1766063561995,5.73193,2892.3,2891.6,3.45823702]
[1766063562397,5.1603,2892.3,2891.6,3.45823702]
[1766063564327,5.1603,2892.3,2891.5,6.91676622]
[1766063565406,0.556,2892.4,2891.5,6.91676622]
[1766063565612,4.1025,2892.4,2891.5,6.91676622]
[1766063565925,5.1668,2892.3,2891.5,6.91776622]
[1766063566126,0.556,2892.5,2891.6,0.74737662]
[1766063566356,0.556,2892.5,2891.7,3.45817339]
[1766063566528,0.556,2892.5,2891.7,6.91634678]
[1766063569612,0.556,2892.5,2891.7,10.37452017]
[1766063570031,0.556,2892.5,2891.7,6.91634678]
[1766063570211,0.556,2892.5,2891.8,0.76637234]
[1766063570536,0.556,2892.5,2891.9,6.91586846]
[1766063570736,0.556,2892.5,2891.9,3.45793423]
[1766063572033,0.556,2892.5,2891.9,6.91586846]
[1766063572620,0.556,2892.5,2891.9,3.45793423]
[1766063572927,0.556,2892.5,2892.0,0.82383366]
[1766063574835,0.556,2892.5,2892.0,0.82483366]
[1766063575036,0.556,2892.7,2892.0,0.001]
[1766063575336,5.1668,2892.6,2892.0,0.001]
[1766063577443,4.05621634,2892.7,2892.0,0.001]
[1766063577646,7.51325619,2892.7,2892.0,0.001]
[1766063577843,1.6203,2892.4,2891.5,0.001]
[1766063578045,3.5465,2892.1,2891.5,0.001]
[1766063578233,5.1668,2892.1,2891.5,0.001]
[1766063578550,1.07268,2892.3,2891.6,3.45827694]
[1766063578744,0.556,2892.3,2891.6,3.45827694]
[1766063579052,5.7228,2892.3,2891.6,3.45827694]
[1766063579256,5.7228,2892.3,2891.5,0.001]
[1766063579748,5.722,2892.3,2891.5,0.001]
[1766063579956,0.405504,2893.0,2891.5,0.001]
[1766063580143,5.1668,2892.6,2891.5,0.83188908]
[1766063580343,0.46438023,2892.8,2891.5,0.83188908]
[1766063580634,0.46438023,2892.7,2891.5,1.38788908]
[1766063580834,0.556,2892.9,2892.1,7.84351056]
[1766063581463,0.556,2892.9,2892.2,6.91515108]
[1766063581628,0.0012,2893.1,2892.3,1.47586616]
[1766063581952,0.0002,2893.1,2892.4,0.556]
[1766063582167,0.0002,2893.1,2892.5,0.405504]
[1766063583023,0.002,2893.6,2892.7,0.405504]
[1766063583218,0.002,2893.6,2892.9,0.405504]
[1766063583424,0.002,2894.1,2893.2,7.31019923]
[1766063583753,0.002,2894.1,2893.6,0.405504]
[1766063583938,0.002,2894.1,2893.7,0.556]
[1766063584870,4.8967,2894.0,2893.3,1.778366]
[1766063585047,0.002,2894.1,2893.1,0.46438023]
[1766063585422,0.002,2894.1,2893.3,0.405504]
[1766063585660,0.002,2894.1,2893.4,0.556]
[1766063585950,0.002,2894.1,2893.5,0.405504]
[1766063586518,0.002,2894.1,2893.4,0.65996091]
[1766063586519,0.002,2894.3,2893.7,0.405504]
[1766063586723,0.002,2894.3,2893.8,0.556]
[1766063587462,0.002,2894.3,2893.8,4.01156584]
[1766063587620,0.002,2894.8,2893.8,3.95327282]
[1766063587830,3.45348438,2895.7,2893.8,3.95327282]
[1766063587831,3.45160844,2897.2,2894.8,0.86988423]
[1766063588061,3.9497,2897.1,2895.3,0.10396091]
[1766063588269,1.08529169,2897.0,2895.5,0.10396091]
[1766063588437,1.08529169,2897.0,2895.8,0.10396091]
[1766063588779,0.555,2897.1,2895.9,0.555]
[1766063589282,0.46438023,2897.0,2895.8,0.10396091]
[1766063589423,3.45220423,2896.7,2895.9,0.555]
[1766063589620,6.84690423,2896.7,2895.8,0.65896091]
[1766063590056,6.90440846,2896.7,2895.5,0.10396091]
[1766063590241,0.69044085,2896.6,2895.6,0.555]
[1766063590438,0.69044085,2896.6,2895.6,4.47282836]
[1766063590636,0.69044085,2896.6,2895.7,3.4533794]
[1766063591038,0.69044085,2896.6,2895.6,4.00846947]
[1766063591238,0.69044085,2896.6,2895.6,4.00851422]
[1766063591757,0.41426998,2896.5,2895.4,0.46438023]
[1766063591960,4.8967,2896.4,2895.4,0.555]
[1766063592124,0.87865021,2896.5,2895.4,4.00870123]
[1766063592533,0.87865021,2896.5,2895.4,0.555]
[1766063592741,5.78885021,2896.5,2895.4,0.555]
[1766063592931,1.04866652,2896.4,2895.4,0.555]
[1766063593272,0.555,2896.6,2895.6,3.45346397]
[1766063593632,0.46438023,2897.0,2895.6,3.45346397]
[1766063593633,0.002,2897.1,2895.7,0.44003796]
[1766063593848,0.46638023,2897.1,2895.7,0.405504]
[1766063594160,0.555,2897.3,2895.8,0.405504]
[1766063594359,3.3745,2897.4,2896.0,0.405504]
[1766063594538,0.68258563,2897.3,2896.0,0.405504]
[1766063594738,0.555,2897.6,2896.0,0.86988423]
[1766063595048,0.555,2897.6,2896.2,0.405504]
[1766063595229,0.555,2898.0,2896.4,0.86988423]
[1766063595430,1.5357,2897.8,2896.3,0.10096091]
[1766063595665,1.5357,2897.6,2895.9,0.10396091]
[1766063595832,3.3745,2897.7,2896.3,7.00931534]
[1766063596032,1.30048961,2897.6,2896.3,7.8421582]
[1766063596255,1.30048961,2897.6,2896.3,4.35495039]
[1766063596560,3.3745,2897.4,2896.3,4.35490998]
[1766063596758,0.83610938,2897.6,2896.5,0.10396091]
[1766063596933,7.45658838,2897.9,2896.6,0.555]
[1766063596934,3.9295,2897.9,2896.6,0.555]
[1766063597128,6.82532027,2897.9,2896.7,0.10396091]
[1766063597330,0.555,2897.8,2896.7,0.10396091]
[1766063597861,3.3745,2897.9,2896.9,0.10396091]